[Event "LEM Niedersachsen-A-Open 2025"]
[Site "Verden"]
[Date "2025.01.04"]
[Round "6.33"]
[White "Buecklers, Martin"]
[Black "Lieb, Max"]
[Result "1/2-1/2"]
[ECO "D30"]
[WhiteElo "1859"]
[BlackElo "1791"]
[Annotator "NA RC"]
[PlyCount "82"]
[EventDate "2024.12.27"]
[EventType "swiss"]
[EventCountry "GER"]
[SourceTitle "playchess.com"]
[Source "ChessBase"]
[SourceQuality "1"]
[TimeControl "40/5400+30:1800+30"]

1. Nf3 {[%emt 0:00:02]} Nf6 {[%emt 0:00:20]} 2. g3 {[%emt 0:00:05]} d5 {[%emt 0:00:18]} 3. Bg2 {[%emt 0:00:05]} c5 {[%emt 0:00:10]} 4. O-O {[%emt 0:00:32]} Nc6 {[%emt 0:00:35]} 5. c4 {[%emt 0:02:16]} e6 {[%emt 0:05:52]} 6. a3 {[%emt 0:04:45]} Be7 {[%emt 0:05:45]} 7. cxd5 {[%emt 0:02:43]} exd5 {[%emt 0:01:45]} 8. d4 {[%emt 0:00:38]} O-O {[%emt 0:00:29]} 9. dxc5 {[%emt 0:00:46]} Bxc5 {[%emt 0:00:15]} 10. b4 {[%emt 0:00:07]} Bb6 {[%emt 0:01:02]} 11. Bb2 {[%emt 0:01:07]} Re8 {[%emt 0:02:13]} 12. Nc3 {[%emt 0:06:32]} Bg4 {[%emt 0:05:16]} 13. Na4 {[%emt 0:06:44]} Bc7 {[%emt 0:01:12]} 14. h3 {[%emt 0:06:09]} Bh5 {[%emt 0:00:46]} 15. Bxf6 {[%emt 0:03:00]} gxf6 {[%emt 0:03:53]} 16. Qd2 {[%emt 0:10:56]} Qe7 {[%emt 0:04:30]} 17. g4 {[%emt 0:03:24]} Bg6 {[%emt 0:01:09]} 18. Nc3 {[%emt 0:10:01]} Rad8 {[%emt 0:04:00]} 19. Nb5 {[%emt 0:03:10]} Be5 {[%emt 0:07:49]} 20. Ra2 {[%emt 0:06:57]} d4 {[%emt 0:12:46]} 21. e3 {[%emt 0:04:26]} dxe3 {[%emt 0:03:18]} 22. Qxe3 {[%emt 0:00:22]} Bd3 {[%emt 0:06:52]} 23. a4 {[%emt 0:07:49]} Bxf1 {[%emt 0:03:41]} 24. Bxf1 {[%emt 0:00:06]} a6 {[%emt 0:04:36]} 25. Nc3 {[%emt 0:02:26]} Qxb4 {[%emt 0:07:36]} 26. Ne4 {[%emt 0:03:37]} Qxe4 {[%emt 0:01:02]} 27. Qxe4 {[%emt 0:15:15]} Bh2+ {[%emt 0:00:12]} 28. Kxh2 {[%emt 0:00:00]} Rxe4 {[%emt 0:00:16]} 29. Nh4 {[%emt 0:00:00]} Rdd4 {[%emt 0:02:05]} 30. Bg2 {[%emt 0:00:00]} Rxa4 {[%emt 0:01:08]} 31. Rb2 {[%emt 0:00:00]} Reb4 {[%emt 0:00:44]} 32. Re2 {[%emt 0:00:00]} Ne5 {[%emt 0:01:26]} 33. Nf5 {[%emt 0:00:00]} Rb3 {[%emt 0:06:57]} 34. Bd5 {[%emt 0:00:00]} Rbb4 {[%emt 0:02:35]} 35. Rc2 {[%emt 0:00:00]} Rc4 {[%emt 0:01:36]} 36. Bxc4 {[%emt 0:00:00]} Rxc4 {[%emt 0:00:16]} 37. Ra2 {[%emt 0:00:00]} Kf8 {[%emt 0:01:33]} 38. Ra5 {[%emt 0:00:00]} Rc6 {[%emt 0:01:34]} 39. Rd5 {[%emt 0:00:00]} Rc8 {[%emt 0:01:05]} 40. Rd6 {[%emt 0:00:00]} Ke8 {[%emt 0:01:14]} 41. Rb6 {[%emt 0:26:15]} Ra8 {[%emt 0:02:11]} 1/2-1/2

[Event "LEM Niedersachsen-A-Open 2025"]
[Site "Verden"]
[Date "2025.01.04"]
[Round "6.34"]
[White "Bisa, Gani"]
[Black "Klages, Jonas"]
[Result "1-0"]
[ECO "E76"]
[WhiteElo "1885"]
[BlackElo "1776"]
[Annotator "NA RC"]
[PlyCount "77"]
[EventDate "2024.12.27"]
[EventType "swiss"]
[EventCountry "GER"]
[SourceTitle "playchess.com"]
[Source "ChessBase"]
[SourceQuality "1"]
[TimeControl "40/5400+30:1800+30"]

1. d4 {[%emt 0:00:07]} Nf6 {[%emt 0:00:03]} 2. c4 {[%emt 0:00:04]} g6 {[%emt 0:00:03]} 3. Nc3 {[%emt 1:31:49]} Bg7 {[%emt 1:31:54]} 4. e4 {[%emt 0:00:00]} d6 {[%emt 0:00:00]} 5. f4 {[%emt 0:00:00]} Nc6 {[%emt 0:00:00]} 6. Nf3 {[%emt 0:00:00]} O-O {[%emt 0:00:00]} 7. Be2 {[%emt 0:00:00]} Re8 {[%emt 0:00:00]} 8. O-O {[%emt 0:00:00]} e5 {[%emt 0:00:00]} 9. fxe5 {[%emt 0:00:00]} dxe5 {[%emt 0:00:00]} 10. d5 {[%emt 0:00:00]} Nd4 {[%emt 0:00:00]} 11. Be3 {[%emt 0:00:00]} Nxe2+ {[%emt 0:00:00]} 12. Qxe2 {[%emt 0:00:00]} Nh5 {[%emt 0:00:00]} 13. Qd2 {[%emt 0:00:00]} f5 {[%emt 0:00:00]} 14. Bg5 {[%emt 0:00:00]} Nf6 {[%emt 0:00:00]} 15. exf5 {[%emt 0:00:00]} Bxf5 {[%emt 0:00:00]} 16. Rae1 {[%emt 0:00:00]} Qd6 {[%emt 0:00:00]} 17. Kh1 {[%emt 0:00:00]} a6 {[%emt 0:00:00]} 18. a3 {[%emt 0:00:00]} Rad8 {[%emt 0:00:00]} 19. Nh4 {[%emt 0:00:00]} Bc8 {[%emt 0:00:00]} 20. c5 {[%emt 0:00:00]} Qe7 {[%emt 0:00:00]} 21. Nf3 {[%emt 0:00:00]} Rf8 {[%emt 0:00:00]} 22. b4 {[%emt 0:00:00]} e4 {[%emt 0:00:00]} 23. Qc1 {[%emt 0:00:00]} Bf5 {[%emt 0:00:00]} 24. Nh4 {[%emt 0:00:00]} Qd7 {[%emt 0:00:48]} 25. Rd1 {[%emt 0:00:00]} Rde8 {[%emt 0:03:54]} 26. d6 {[%emt 0:00:00]} Ng4 {[%emt 0:01:48]} 27. Be7 {[%emt 0:00:00]} Rf7 {[%emt 0:00:55]} 28. Nd5 {[%emt 0:00:00]} cxd6 {[%emt 0:01:09]} 29. cxd6 {[%emt 0:00:00]} Be6 {[%emt 0:00:36]} 30. Nf4 {[%emt 0:00:00]} e3 {[%emt 0:01:18]} 31. Rde1 {[%emt 0:00:00]} Nf2+ {[%emt 0:00:43]} 32. Kg1 {[%emt 0:00:00]} Rxf4 {[%emt 0:00:39]} 33. Nf3 {[%emt 0:00:00]} Nd3 {[%emt 0:01:34]} 34. Qxe3 {[%emt 0:00:00]} Nxe1 {[%emt 0:00:06]} 35. Rxe1 {[%emt 0:00:00]} Rxe7 {[%emt 0:01:32]} 36. dxe7 {[%emt 0:00:00]} Rf6 {[%emt 0:00:35]} 37. Ng5 {[%emt 0:00:00]} Qxe7 {[%emt 0:00:41]} 38. Nxe6 {[%emt 0:00:00]} Bh6 {[%emt 0:00:41]} 39. Qe5 {[%emt 0:00:00]} 1-0